Cogmind - Beta 13 @@@ ROGUE MODE // 2024.05.18 @ 00:12:03 Player: ktur Result: Destroyed by ER-QUM(R) with Subdweller Beam Cannon Performance ------------- Evolutions (0) 0 Regions Visited (2) 400 Robots Destroyed (11) 55 Value Destroyed (368) 368 Prototype IDs (0) 0 Alien Tech Used (0) 0 Bonus (0) 0 TOTAL SCORE: 823 Bonus ------- None Cogmind --------- Core Integrity 0/250 Matter 181/300 Energy 125/125 System Corruption 0% Temperature Warm (123) Movement Treading (160) Location -10/Subcaves Parts ------- > --- POWER (1) -------- Light Ion Engine > --- PROPULSION (2) --- Light Treads > --- UTILITY (2) ------ Small Storage Unit Makeshift Light Armor Plating > --- WEAPON (2) ------- Subdweller Shrapnel Launcher > --- INVENTORY (8) ---- Arachnoskeleton Compact Wheel Seismic Detector Mining Laser Multitool Peak State ------------ > --- POWER ------------ Ion Engine > --- PROPULSION ------- Light Treads Light Treads > --- UTILITY ---------- Small Storage Unit Makeshift Light Armor Plating > --- WEAPON ----------- Subdweller Laser Barrage Gun > --- INVENTORY -------- Light Ion Engine Light Treads Arachnoskeleton Compact Wheel Seismic Detector Mining Laser [Rating: 15] Favorites ----------- Power Ion Engine Engine Ion Engine Propulsion Light Treads Treads Light Treads Utility Small Storage Unit Device Seismic Detector Storage Small Storage Unit Protection Makeshift Light Armor Plating Weapon EM Pulse Gun Energy Gun EM Pulse Gun Energy Cannon Subdweller Beam Cannon Ballistic Gun Barrage Gun Launcher Subdweller Shrapnel Launcher Special Weapon Mining Laser Build | -11 -10 -10 ------- Run | Yrd Mat Sub Slots Evolved . | . . . Power . | . . . Propulsion . | . . . Utility . | . . . Weapon . | . . . Parts Attached 25 | 7 . 18 Power 2 | 1 . 1 Engine 2 | 1 . 1 Core . | . . . Reactor . | . . . Propulsion 3 | 2 . 1 Treads 3 | 2 . 1 Leg . | . . . Wheel . | . . . Hover . | . . . Flight . | . . . Utility 5 | 2 . 3 Device 2 | 1 . 1 Storage 1 | 1 . . Processor . | . . . Hackware . | . . . Protection 2 | . . 2 Artifact . | . . . Weapon 15 | 2 . 13 Energy Gun 7 | 2 . 5 Energy Cannon 1 | . . 1 Ballistic Gun 2 | . . 2 Ballistic Cannon . | . . . Launcher 1 | . . 1 Special Weapon 4 | . . 4 Impact Weapon . | . . . Slashing Weapon . | . . . Piercing Weapon . | . . . Special Melee Weapon . | . . . Unidentified Prototypes . | . . . Parts Lost 3 | . . 3 Power . | . . . Propulsion 1 | . . 1 Utility . | . . . Weapon 2 | . . 2 Highest Loss Streak 3 | . . 3 To Critical Strikes . | . . . Average Slot Usage (%) 99 | . 100 99 Engine 14 | . 14 14 Treads 28 | . 28 28 Device 11 | . 14 10 Storage 14 | . 14 14 Protection 2 | . . 3 Energy Gun 19 | . 28 17 Ballistic Gun 5 | . . 6 Special Weapon 1 | . . 2 Naked Turns . | . . . Heaviest Build 24 | 15 15 24 Greatest Support 40 | 40 40 40 Greatest Overweight (x) . | . . . Average Overweight (x) . | . . . Largest Inventory Capacity 8 | 8 8 8 Average Capacity 7 | 7 8 8 Most Carried 8 | 6 8 8 Average Carried 7 | 3 7 7 Final Capacity 8 | 8 8 8 Final Carried 8 | 6 8 7 Class Distribution -------------------- 100% | Mutant Dominant Class ---------------- Mutant | -10/Materials Mutant | -10/Subcaves Resources | -11 -10 -10 ----------- Run | Yrd Mat Sub Matter Collected 428 | 250 . 178 Remotely . | . . . Salvage Created 486 | 32 . 454 Parts 36 | 6 . 30 Haulers Intercepted . | . . . Recyclers Shooed 1 | 1 . . Parts Field Recycled . | . . . Retrieved Matter . | . . . Parts Self-Destructed 12 | . . 12 Prevented . | . . . Kills | -11 -10 -10 ------- Run | Yrd Mat Sub Combat Hostiles Destroyed 9 | . . 9 Guns 6 | . . 6 Cannons 1 | . . 1 AOE 2 | . . 2 Classes Destroyed 4 | 2 . 2 Worker 1 | 1 . . Tunneler 1 | 1 . . Artisan 1 | . . 1 Subdweller 9 | . . 9 Best Kill Streak 3 | 1 . 3 Combat Bots Only 3 | . . 3 Max Kills in Single Turn 1 | 1 . 1 Gunslinging . | . . . Exploded 1 | . . 1 Melee . | . . . Uniques/NPCs Destroyed . | . . . Combat | -11 -10 -10 -------- Run | Yrd Mat Sub Hostile Shots Fired 55 | . . 55 Missed 13 | . . 13 Damage Taken 1056 | . . 1056 Core 267 | . . 267 Absorbed by Shields . | . . . Core Remaining (%) 100 | 100 . . Volleys Fired 60 | 2 . 58 Largest 2 | 2 . 2 Hottest 100 | 80 . 100 Shots Fired 85 | 4 . 81 Gun 56 | 4 . 52 Cannon 7 | . . 7 Launcher 2 | . . 2 Special 20 | . . 20 Kinetic 20 | . . 20 Thermal 41 | . . 41 Explosive . | . . . Electromagnetic 24 | 4 . 20 Robot Hit Streak 28 | 2 . 28 Robot Miss Streak 1 | 1 . 1 Penetration Max . | . . . Secondary Targets 1 | . . 1 Max Gunslinging Chain 1 | . . 1 Shots Hit Robots 58 | 3 . 55 Core Hits 23 | 1 . 22 Critical Kills . | . . . Critical Parts Destroyed . | . . . Critical Strikes 2 | . . 2 Corrupt 2 | . . 2 Melee Attacks . | . . . Impact . | . . . Slashing . | . . . Piercing . | . . . Sneak Attacks . | . . . Combat Hostiles . | . . . Follow-up Attacks . | . . . Damage Inflicted 1363 | 59 . 1304 Guns 750 | 49 . 701 Cannons 197 | . . 197 Explosions 406 | . . 406 Melee . | . . . Ramming 10 | 10 . . Kinetic 517 | . . 517 Thermal 590 | . . 590 Explosive . | . . . Electromagnetic 246 | 49 . 197 Impact . | . . . Slashing . | . . . Piercing . | . . . Highest Corruption . | . . . Average Corruption . | . . . Corruption Purged . | . . . Corruption Blocked . | . . . Overload Shots . | . . . Overflow Damage . | . . . Projectiles . | . . . Explosions . | . . . Melee . | . . . Knockbacks . | . . . Impact . | . . . Kinetic . | . . . Secondary . | . . . Self-Inflicted Damage 143 | . . 143 Shots 3 | . . 3 Rammed . | . . . Targets Rammed 1 | 1 . . Kicked . | . . . Crushed 1 | 1 . . Highest Temperature 286 | 36 . 286 Average Temperature 55 | 20 . 59 Received Heat Transfer 553 | . . 553 Siege Activations . | . . . Robots Corrupted . | . . . Combat Hostiles . | . . . Parts Fried 1 | . . 1 Impact Corruptions . | . . . Robots Melted . | . . . Combat Hostiles . | . . . Parts Melted 2 | . . 2 Heat Transferred 684 | . . 684 Parts Sabotaged . | . . . Parts Stolen . | . . . Parts Stripped . | . . . Power Chain Reactions 1 | . . 1 Alert | -11 -10 -10 ------- Run | Yrd Mat Sub Peak Influence 6 | 5 6 . Initial 6 | . 6 . Average 5 | 1 6 . Maximum Alert Level . | . . . Low Security (%) 100 | 100 100 . Level 1 . | . . . Level 2 . | . . . Level 3 . | . . . Level 4 . | . . . Level 5 . | . . . High Security . | . . . Max Security . | . . . Squads Dispatched . | . . . Investigation . | . . . Extermination . | . . . Reinforcement . | . . . Assault . | . . . Garrison . | . . . Intercept . | . . . Searches Triggered . | . . . Construction Impeded . | . . . Haulers Reinforced . | . . . Active Scanning Responses . | . . . Cargo Convoy Interrupts . | . . . Stealth | -11 -10 -10 --------- Run | Yrd Mat Sub Distress Signals . | . . . Communications Jammed . | . . . Distress Signals . | . . . Times Spotted 10 | . . 10 Peak Tracking Total 2 | . . 2 Tactical Retreats . | . . . Traps | -11 -10 -10 ------- Run | Yrd Mat Sub Traps Triggered . | . . . Indirectly . | . . . Trap Hack Attempts . | . . . Triggered . | . . . Disarmed . | . . . Reprogrammed . | . . . Reused . | . . . Traps Extracted . | . . . Installed . | . . . Triggered . | . . . Machines | -11 -10 -10 ---------- Run | Yrd Mat Sub Machines Disabled . | . . . Max in Single Turn . | . . . Machines Repaired . | . . . Machines Dismantled . | . . . Machines Sabotaged . | . . . Overloaded Fab Kills . | . . . Hacking | -11 -10 -10 --------- Run | Yrd Mat Sub Machines Accessed 1 | . 1 . Terminals 1 | . 1 . Fabricators . | . . . Repair Stations . | . . . Recycling Units . | . . . Scanalyzers . | . . . Garrison Access . | . . . Total Hacks 5 | . 5 . Successful 2 | . 2 . Failed 3 | . 3 . Catastrophic . | . . . Database Lockouts . | . . . Manual . | . . . Terminals 5 | . 5 . Fabricators . | . . . Repair Stations . | . . . Recycling Units . | . . . Scanalyzers . | . . . Garrison Access . | . . . Terminal Hacks 2 | . 2 . Alert Level 2 | . 2 . Fabricator Hacks . | . . . Repair Station Hacks . | . . . Recycling Unit Hacks . | . . . Scanalyzer . | . . . Garrison Access Hacks . | . . . Unauthorized Hacks . | . . . Terminals . | . . . Fabricators . | . . . Repair Stations . | . . . Recycling Units . | . . . Scanalyzers . | . . . Garrison Access . | . . . Data Cores Recovered . | . . . Used . | . . . Hacking Detections 1 | . 1 . Full Trace Events . | . . . Feedback Events . | . . . Feedback Blocked . | . . . Robot Schematics Acquired . | . . . Robots Built . | . . . Authchips . | . . . Time . | . . . Total Robot Build Rating . | . . . Part Schematics Acquired . | . . . Parts Built . | . . . Authchips . | . . . Time . | . . . Total Part Build Rating . | . . . Parts Repaired . | . . . Time . | . . . Parts Recycled . | . . . Recycled Matter . | . . . Retrieved Matter . | . . . Retrieved Components . | . . . Parts Scanalyzed . | . . . Part Schematics Acquired . | . . . Parts Damaged . | . . . Bothacking | -11 -10 -10 ------------ Run | Yrd Mat Sub Used RIF Installer . | . . . Robots Hacked . | . . . Non-combat . | . . . Combat . | . . . Robot Hacks Applied . | . . . Relay Couplers Released . | . . . Fabnet Peak Effective % . | . . . Robots Rewired . | . . . Allies Hacked . | . . . Hacks Repelled . | . . . Allies | -11 -10 -10 -------- Run | Yrd Mat Sub Total Allies . | . . . Largest Group . | . . . Highest-Rated Group . | . . . Highest-Rated Ally . | . . . Total Orders . | . . . Ally Attacks . | . . . Total Damage . | . . . Kills . | . . . Allies Corrupted . | . . . Allies Melted . | . . . Intel | -11 -10 -10 ------- Run | Yrd Mat Sub Robot Analysis Total . | . . . Derelict Logs Recovered 1 | . . 1 Drone Launches . | . . . Drone Recoveries . | . . . Exploration | -11 -10 -10 ------------- Run | Yrd Mat Sub Turns Passed 2175 | 104 380 1691 Spaces Moved 1002 | 55 41 906 Core 7 | 7 . . Treads 995 | 48 41 906 Legs . | . . . Wheels . | . . . Hover . | . . . Flight . | . . . Fastest Speed 50 | 50 160 160 Average Speed 159 | 146 160 160 Slowest Speed 160 | 160 160 160 Overloaded Moves . | . . . Propulsion Burnouts . | . . . Robots Hopped . | . . . Cave-ins Triggered . | . . . Exploration Rate (%) 18 | 5 8 41 Regions Visited 2 Branch Regions 1 Pre-discovered Areas 2 | . . 2 Known Exits Taken . | . . . Unknown Exits Taken 2 | 1 1 . Scrap Searched 1 | . . 1 Spaces Dug . | . . . Terrain Destroyed 38 | . . 38 Melee . | . . . Projectile . | . . . AOE 38 | . . 38 Terrain Rammed . | . . . Walls Destroyed . | . . . Machines Disabled . | . . . Actions | -11 -10 -10 --------- Run | Yrd Mat Sub Total 1452 | 71 356 1025 Wait 342 | . 314 28 Move 1001 | 55 40 906 Hop . | . . . Pick Up 15 | 7 2 6 Fast Attach 7 | 6 . 1 Attach 5 | 1 . 4 Detach . | . . . Swap 13 | . . 13 Drop 9 | . . 9 Fire 60 | 2 . 58 Melee . | . . . Ram . | . . . Kick . | . . . Crush . | . . . Escape Stasis . | . . . Rewire . | . . . Trap . | . . . Miscellaneous . | . . . Route ------- -11/Scrapyard -10/Materials -10/Subcaves History --------- Turn | Location | Event 4 | -11/Scrapyard | Discovered new exit (range 16) 105 | -11/Scrapyard | Entered Materials 315 | -10/Materials | Build established: Mutant 468 | -10/Materials | Discovered new exit (range 4) 485 | -10/Materials | Entered Subcaves 944 | -10/Subcaves | Shifting Twisted Machinery released Sub. Machine Gun 983 | -10/Subcaves | Shifting Twisted Machinery released Mak. Light Armor Plating 1056 | -10/Subcaves | Learned location of Zion (-6) 1056 | -10/Subcaves | Met a Zionite searching for "candidates" 1069 | -10/Subcaves | A swath of the cavern ceiling suddenly collapsed 1072 | -10/Subcaves | Shifting Twisted Machinery released Mak. Light Armor Plating 1125 | -10/Subcaves | Shifting Twisted Machinery released Sub. Beam Cannon 1281 | -10/Subcaves | A Subdweller sparked back to life 1281 | -10/Subcaves | A Subdweller sparked back to life 1326 | -10/Subcaves | Found Prototype Leg 2015 | -10/Subcaves | Core integrity fell below 50% 2108 | -10/Subcaves | Shifting Twisted Machinery released Sub. Shrapnel Launcher 2130 | -10/Subcaves | Shifting Twisted Machinery released Mak. Axe 2174 | -10/Subcaves | Core integrity fell below 20% 2176 | -10/Subcaves | Destroyed by ER-QUM(R) with Subdweller Beam Cannon Last Messages --------------- 01756_ 83-U74(R) destroyed. 01770_ 8K-6CP(R) destroyed. 01774_ Acquired 28 matter. 01972_ CZ-C5I(u) cries out in pain. 01972_ CZ-C5I(u) destroyed. 01978_ Acquired 4 matter. 01981_ Dropped Lgt. Treads. 01983_ Acquired Multitool. 01993_ 8R-UZ2(R): "SUBHATE!" 02017_ 8R-UZ2(R) destroyed. 02023_ Acquired 26 matter. Sub. Shrapnel Launcher falls loose from the Twisted Machinery. 02126_ Dropped Ion Engine. 02128_ Acquired Sub. Shrapnel Launcher. Mak. Axe falls loose from the Twisted Machinery. 02162_ Sub. Laser destroyed. 02164_ Critical hit (Meltdown: +280). 02170_ Barrage Gun destroyed. 02173_ 9W-47A(R) destroyed. 02174_ Lgt. Treads destroyed. Map ----- +----------------------------------------------------+ | ??????????????????????# #?## ####% ##? | | ??????????????????????## ## #??# ######?? | | ???????????????????????###### #??# ##????? | | ????????????????????????????###??# ###??? | | ?????????????????????????????????# ###" ##?? | | ?????????????????????????????????#" ## #= #?? | | ?????????????????????????????????#" *%""##? | | ?????????????????????????????????#" = ## | | ?????????????????????????????###?##" ### &%& "" | | ????????????????????????????## ##?#""# # | | ???????????????????????????## #?#""" " ## | | ??????????????????????????## ###"" " ##### | | ??????????????????????????# " #####???? | | ??????????????????????????## # ""#??????? | | ???????????????????????????## ##"" #?????? | | ????????????????????####????#### "# ""##?????? | | ????????????????????# #######?## #"""#??????? | | ?????????????????????# ## ### #"""#??????? | | ???????????????#####?# ## ## ??????? | | ??????????????##" "### #??????????? | | ??????????????# "" # #??????????? | | ??????????????## ##"##### # #??????????? | | ???????????????#! ;;;; ;## # #??????????? | | ???????????????#* ;#" # #??????????? | | ???????????????# ## # ##??????????? | | ???????????????## %@/ O #???????????? | | ????????????????#; R #???????????? | | ????????????????# ????????? | | ????????????????# ; ; ### ?????????? | | ????????????????# ; ;## ##??# # ?????????? | | ????????????????# ####### #????##??????????? | | ????????????????## #?????####????????????????? | | ?????????????????"" #?????????????????????????? | | ????????????????##"""?????????????????????????? | | ????????????????? " ?????????????????????????? | | ??????????????????# ?????????????????????????? | | ????????????????????"?????????????????????????? | | ??????????????????????????????????????????????? | | ??????????????????????????????????????????????? | | ??????????????????????????????????????????????? | | ??????????????????????????????????????????????? | | ??????????????????????????????????????????????? | | ??????????????????????????????????????????????? | | ??????????????????????????????????????????????? | | ??????????????????????????????????????????????? | | ??????????????????????????????????????????????? | | ??????????????????????????????????????????????? | | ??????????????????????????????????????????????? | | ??????????????????????????????????????????????? | | ??????????????????????????????????????????????? | +----------------------------------------------------+ Best States ------------- Heat Dissipation 25 Energy Generation 10 Energy Capacity 250 Matter Stores 300 Matter Capacity 300 Sight Range 16 Terrain Scan Density 10 Armor Coverage 100 Evasion (%) 40 Recoil Reduction 2 Item Schematics ----------------- None Robot Schematics ------------------ None Fabricated ------------ Nothing Alien Tech Used ----------------- None Achievements -------------- None Challenges ------------ None Game ------ Seed HardlightIntegratedShotgun Manual? 0 Play Time 00:07:50 Cumulative 767.0 hours Start 2024.05.18 @ 00:04:42 End 2024.05.18 @ 00:12:03 Sessions 1 Manual Loads 0 Difficulty Rogue Special Mode None Game No. 731 Rogue 731 Adventurer 0 Explorer 0 Win Type - Total 39 Types 14/4/11/2/0/0/5/2/1 Lore% 95 Gallery% 95 Achievement% 84 Wizard Run 0 Options --------- Layout 0 ASCII 0 Keyboard 0 Movement Numpad Keybinds 0 Fullscreen 1 Font 18/Smallcaps Map View 76x50 Zoom Use 0% Tactical HUD 1 Map Filters NONE Filters NONE Steam 1 RUN: 74f6ce48-5b17-42f2-a1cd-477744987783